Cogmind - Beta 16 @@@ ROGUE MODE // 2026.02.07 @ 23:17:50 Player: AngelSpirit Result: Destroyed by AG-07731 with Assembled Focal Cannon Performance ------------- Evolutions (3) 1500 Regions Visited (15) 3000 Robots Destroyed (207) 1035 Value Destroyed (7560) 7560 Prototype IDs (68) 1360 Alien Tech Used (0) 0 Bonus (4029) 4029 TOTAL SCORE: 18484 Bonus ------- High Alert Combat Kills 533 Follower Combat Kills 1316 Entered Garrisons 400 Used RIF Installer 1500 Aligned with FarCom 300 Friendly Fire -20 Cogmind --------- Core Integrity 0/700 Matter 300/300 Energy 570/700 System Corruption 0% Temperature Cool (6) Movement Hovering (48) Location -7/Deep Caves Parts ------- > --- POWER (1) -------- Zionite Light DM Reactor > --- PROPULSION (4) --- Zionite Glidesys I Zionite Glidesys I Zionite Glidesys I Zionite Glidesys I > --- UTILITY (6) ------ Experimental Heat Sink Zionite Biocell Improved Reaction Control System Zionite Weapon Casing Zionite Heavy Carapace > --- WEAPON (2) ------- Heavy Proton Cannon > --- INVENTORY (5) ---- Zionite Glidesys I Zionite Weapon Casing GOLEM Unit AS-neutralizer No. 17b Peak State ------------ > --- POWER ------------ Reinforced Quantum Reactor > --- PROPULSION ------- Makeshift Leg Makeshift Leg Zionite Composite Leg I Cooled Aerolev Unit > --- UTILITY ---------- Advanced Heat Sink Experimental Cooling System High-capacity Storage Unit Zionite Biocell Zionite Heavy Carapace > --- WEAPON ----------- Cooled Plasma Cannon Cooled Plasma Cannon > --- INVENTORY -------- Improved Deuterium Engine Micro Neutrino Core Cooled Aerolev Unit Cooled Aerolev Unit Gravity Neutralizer Relay Coupler [Programmer] Relay Coupler [Programmer] Improved Trap Extractor Thief Drone Bay Hacking Drone Bay Army-in-a-Box AS-neutralizer No. 17b Heavy Proton Cannon Proton Missile Launcher GAL Module [Rating: 87] Favorites ----------- Power Reinforced Quantum Reactor Engine Cooled Ion Engine Power Core Reinforced Fission Core Reactor Reinforced Quantum Reactor Propulsion Compact Wheel Leg Advanced Myomer Leg Wheel Compact Wheel Hover Unit Cooled Aerolev Unit Utility High-capacity Storage Unit Device Seismic Detector Storage High-capacity Storage Unit Processor Experimental Core Analyzer Hackware Makeshift Hacking Suite Protection Hardened Medium Armor Plating Weapon Cooled Plasma Cannon Energy Gun AWS/Thermal Energy Cannon Cooled Plasma Cannon Ballistic Gun 8R-AWN's Boregun Ballistic Cannon Mini Assault Cannon Launcher Mini Grenade Launcher Special Weapon Remote Datajack Impact Weapon Heavy Hammer Slashing Weapon Axe Build | -11 -10 -10 -9 -9 -9 -8 -8 -8 -8 -8 -7 -7 -7 -7 -7 ------- Run | Yrd Mat Min Mat Min Exi Min Mat Gar Mat Gar Fac Low Low Zio Dee Slots Evolved 6 | . . . 2 . . . 2 . . . 2 . . . . Power . | . . . . . . . . . . . . . . . . Propulsion 2 | . . . 1 . . . 1 . . . . . . . . Utility 4 | . . . 1 . . . 1 . . . 2 . . . . Weapon . | . . . . . . . . . . . . . . . . Parts Attached 153 | 7 14 . 15 1 19 7 5 3 14 5 38 . . 4 21 Power 15 | 1 2 . 2 . 3 1 . . 1 . 3 . . . 2 Engine 8 | 1 1 . 2 . 1 . . . 1 . 2 . . . . Core 3 | . 1 . . . 1 1 . . . . . . . . . Reactor 4 | . . . . . 1 . . . . . 1 . . . 2 Propulsion 43 | 2 5 . 4 . 4 3 2 1 4 . 10 . . 2 6 Treads . | . . . . . . . . . . . . . . . . Leg 10 | . . . . . 3 3 . . 1 . . . . 2 1 Wheel 20 | 2 5 . 4 . 1 . . . 3 . 5 . . . . Hover 13 | . . . . . . . 2 1 . . 5 . . . 5 Flight . | . . . . . . . . . . . . . . . . Utility 58 | 2 3 . 3 1 8 3 2 1 7 2 15 . . 2 9 Device 25 | 1 2 . . 1 5 2 . . 1 1 8 . . 2 2 Storage 6 | 1 1 . 1 . . 1 . . . . . . . . 2 Processor 3 | . . . . . 1 . . . . . 2 . . . . Hackware 2 | . . . . . . . 1 . . . 1 . . . . Protection 22 | . . . 2 . 2 . 1 1 6 1 4 . . . 5 Artifact . | . . . . . . . . . . . . . . . . Weapon 37 | 2 4 . 6 . 4 . 1 1 2 3 10 . . . 4 Energy Gun 9 | . . . 2 . . . 1 1 . 2 1 . . . 2 Energy Cannon 7 | . . . 1 . 1 . . . . . 4 . . . 1 Ballistic Gun 12 | 2 2 . 1 . 2 . . . 1 1 3 . . . . Ballistic Cannon 1 | . . . . . . . . . . . 1 . . . . Launcher 4 | . 1 . 1 . 1 . . . . . . . . . 1 Special Weapon 1 | . . . . . . . . . . . 1 . . . . Impact Weapon 2 | . 1 . 1 . . . . . . . . . . . . Slashing Weapon 1 | . . . . . . . . . 1 . . . . . . Piercing Weapon . | . . . . . . . . . . . . . . . . Special Melee Weapon . | . . . . . . . . . . . . . . . . Unidentified Prototypes 36 | . . . 5 1 8 4 2 . 1 . 4 . . 2 9 Parts Lost 37 | . 5 . 2 . 3 1 . 1 3 3 12 1 . 2 4 Power 4 | . 2 . . . 1 . . . . . 1 . . . . Propulsion 10 | . 2 . 1 . . 1 . . . . 2 1 . 2 1 Utility 13 | . 1 . . . 2 . . . 2 1 4 . . . 3 Weapon 10 | . . . 1 . . . . 1 1 2 5 . . . . Highest Loss Streak 12 | . 2 . 1 . 2 1 . 1 3 1 12 1 . 1 2 To Critical Strikes . | . . . . . . . . . . . . . . . . Average Backups 11 | . 8 14 15 18 11 12 13 13 13 14 14 14 14 6 11 Power 1 | . . 1 1 2 1 1 2 2 2 2 1 2 2 . 1 Propulsion 2 | . 3 6 5 4 1 1 1 1 2 3 3 2 2 . 1 Utility 6 | . 1 4 6 8 6 8 8 7 8 8 8 7 7 4 6 Weapon 1 | . 3 3 2 4 2 1 1 1 1 . . 2 3 1 1 Tool/Special . | . . . . . . . . . . . . . . . . Unused Backups 33 | . 1 1 3 1 13 1 1 1 1 . 2 1 . 1 6 Power 6 | . . . . . 4 . . . . . 1 . . . 1 Propulsion 7 | . 1 . 1 . 3 . 1 . . . . . . . 1 Utility 13 | . . . . 1 6 . . . 1 . . 1 . . 4 Weapon 6 | . . 1 2 . . 1 . . . . 1 . . 1 . Tool/Special 1 | . . . . . . . . 1 . . . . . . . Average Slot Usage (%) 85 | . 95 100 86 100 93 97 84 96 95 76 78 97 100 59 94 Engine 3 | . 5 14 11 11 8 . . . . . 4 . . . . Core 1 | . 7 . . . 2 3 . . . . . . . . . Reactor 4 | . . . . . . 7 9 9 8 9 1 7 7 7 6 Leg 8 | . . . . . 5 31 27 27 21 . . . . 4 13 Wheel 14 | . 26 28 30 33 26 . . . 4 18 16 26 23 11 2 Hover 3 | . . . . . . . 1 9 5 . . 1 7 7 12 Device 10 | . 11 14 11 11 9 11 3 . . . 5 23 23 11 20 Storage 7 | . 14 14 11 11 9 11 9 9 9 9 6 7 7 2 6 Processor 3 | . . . . . 1 11 9 9 9 9 9 . . . . Hackware 2 | . . . . . . . 7 9 9 9 10 . . . . Protection 7 | . . . 5 11 7 . 6 9 8 8 7 15 15 4 14 Energy Gun 1 | . . . 2 . . . 4 2 3 6 5 . . . . Energy Cannon 5 | . . . 1 11 5 . . . . . 5 15 15 8 12 Ballistic Gun 7 | . 27 27 7 . 12 22 8 12 8 6 . . . . . Peak Build Rating 87 | 7 10 9 19 24 80 80 83 84 75 68 75 63 63 86 87 Average Rating 57 | 5 8 8 12 18 41 77 77 81 70 61 63 57 63 75 75 On Entrance 47 | . 7 8 9 18 19 80 78 79 75 60 68 57 63 63 74 Avg Prop Armor Cover (%) 3 | . . . . . . . 4 3 4 . . 1 1 4 5 Naked Turns 7 | . . . . . . . . . . . 7 . . . . Heaviest Build 118 | 14 30 26 63 63 74 77 68 71 71 68 109 109 109 118 105 Greatest Support 80 | 20 30 20 36 36 80 80 75 75 75 56 70 58 42 42 64 Greatest Overweight (x) 7 | . 2 1 1 1 1 1 . . 2 1 2 2 2 7 6 Average Overweight (x) 1 | . . 1 . 1 . . . . . 1 . 1 2 5 1 Largest Inventory Capacity 20 | 8 15 15 20 20 20 20 20 20 20 20 20 20 20 20 20 Average Capacity 16 | 6 12 15 18 20 17 20 20 20 20 20 19 20 20 9 16 Most Carried 20 | 1 15 15 20 20 20 20 20 20 20 20 20 20 20 20 20 Average Carried 15 | . 8 14 15 18 16 19 19 19 19 19 19 19 20 8 15 Final Capacity 20 | 8 15 15 20 20 20 20 20 20 20 20 20 20 20 20 20 Final Carried 20 | 1 15 15 20 19 20 20 20 20 20 20 20 20 20 20 20 Class Distribution -------------------- 62% | Scavenger-Mutant 37% | Mutant Dominant Class ---------------- Mutant | -10/Materials Scavenger-Mutant | -10/Mines Scavenger-Mutant | -9/Materials Scavenger-Mutant | -9/Mines Scavenger-Mutant | -9/Exiles Mutant | -8/Mines Scavenger-Mutant | -8/Materials Scavenger-Mutant | -8/Garrison Scavenger-Mutant | -8/Materials Scavenger-Mutant | -8/Garrison Scavenger-Mutant | -7/Factory Scavenger-Mutant | -7/Lower Caves Scavenger-Mutant | -7/Lower Caves Mutant | -7/Zion Scavenger-Mutant | -7/Deep Caves Resources | -11 -10 -10 -9 -9 -9 -8 -8 -8 -8 -8 -7 -7 -7 -7 -7 ----------- Run | Yrd Mat Min Mat Min Exi Min Mat Gar Mat Gar Fac Low Low Zio Dee Matter Collected 5184 | 271 820 52 193 110 760 586 34 415 459 338 589 74 21 167 295 Remotely . | . . . . . . . . . . . . . . . . Salvage Created 8602 | 22 755 56 649 202 431 747 145 806 876 965 1583 560 46 354 405 Parts 505 | 3 48 6 43 5 78 40 14 32 54 46 84 15 5 27 5 Haulers Intercepted 8 | . 2 . 3 . . . . . 1 . 2 . . . . Recyclers Shooed 1 | 1 . . . . . . . . . . . . . . . Parts Field Recycled . | . . . . . . . . . . . . . . . . Retrieved Matter . | . . . . . . . . . . . . . . . . Parts Self-Destructed 20 | . . . . . . . . . . . . 15 5 . . Prevented . | . . . . . . . . . . . . . . . . Parts Restored . | . . . . . . . . . . . . . . . . Kills | -11 -10 -10 -9 -9 -9 -8 -8 -8 -8 -8 -7 -7 -7 -7 -7 ------- Run | Yrd Mat Min Mat Min Exi Min Mat Gar Mat Gar Fac Low Low Zio Dee Combat Hostiles Destroyed 158 | . 14 2 16 3 5 14 4 14 16 19 30 10 1 3 7 Melee 2 | . . . . . . . . . 2 . . . . . . Guns 100 | . 11 . 7 . 1 14 4 14 14 19 16 . . . . Cannons 24 | . . . . 2 . . . . . . 8 7 1 3 3 AOE 22 | . 3 2 7 . 4 . . . . . 6 . . . . Classes Destroyed 24 | 1 7 . 2 1 3 2 . 1 1 1 1 . . 2 2 Worker 10 | . 4 . 2 . . . . . . . 4 . . . . Builder 1 | . . . . . . 1 . . . . . . . . . Tunneler 1 | 1 . . . . . . . . . . . . . . . Hauler 8 | . 2 . 3 . . . . . 1 . 2 . . . . Recycler 2 | . 1 . . 1 . . . . . . . . . . . Operator 4 | . . . 2 . . . . . 1 . 1 . . . . Drone 3 | . . . . . . . . . . . . . . 3 . Turret 1 | . . . . . 1 . . . . . . . . . . Watcher 8 | . 2 . 2 . . . . 2 1 . 1 . . . . Swarmer 29 | . 6 . 6 . . 3 2 3 1 3 4 1 . . . Grunt 60 | . 7 2 8 2 . 8 . 7 3 11 9 3 . . . Brawler 5 | . . . . 1 . . . 1 1 . 1 1 . . . Duelist 6 | . . . . . . . . 1 1 1 . 3 . . . Protector 2 | . . . . . . . . . . . 2 . . . . Sentry 18 | . . . 2 . . . 2 3 6 . 4 1 . . . Specialist 6 | . . . . . . . . . 2 . 4 . . . . Hunter 7 | . . . . . . 2 . . 2 1 1 1 . . . Programmer 9 | . . . . . . . . . . 3 5 . 1 . . Subdweller 1 | . 1 . . . . . . . . . . . . . . Zionite 19 | . . . . . 8 . . . . . . . . 11 . Z-Light 2 | . . . . . . . . . . . . . . . 2 Assembled 7 | . . . . . 4 . . . . . . . . . 3 Golem 2 | . . . . . . . . . . . . . . . 2 Wasp 1 | . . . . . . . . . . . . . . 1 . Mutant 2 | . . . . . . . . . . . . . . 2 . Best Kill Streak 14 | 1 4 2 8 2 7 6 3 6 7 3 14 5 1 3 3 Combat Bots Only 10 | . 3 2 5 2 4 6 3 6 6 3 10 5 1 2 3 Max Kills in Single Turn 8 | 1 3 2 2 1 2 2 1 1 1 1 8 1 1 1 1 Gunslinging 1 | . 1 . . . . 1 . . . . . . . . . Exploded 4 | . 2 2 2 . 2 . . . . . 4 . . . . Melee 1 | . . . . . . . . . 1 . . . . . . Uniques/NPCs Destroyed 6 | . . . . . 4 1 . . . . . . . 1 . 8R-AWN (-9/Exiles) EX-BIN (-9/Exiles) EX-DEC (-9/Exiles) EX-HEX (-9/Exiles) 7V-RTL (-8/Mines) Imprinter (-7/Zion) Combat | -11 -10 -10 -9 -9 -9 -8 -8 -8 -8 -8 -7 -7 -7 -7 -7 -------- Run | Yrd Mat Min Mat Min Exi Min Mat Gar Mat Gar Fac Low Low Zio Dee Hostile Shots Fired 893 | . 88 6 58 14 29 34 8 31 62 117 349 28 2 25 42 Missed 297 | . 31 . 17 3 6 8 3 14 15 34 130 10 2 13 11 Hits 596 | . 57 6 41 11 23 26 5 17 47 83 219 18 . 12 31 Melee 6 | . . . . . . . . . 2 1 . 2 . . 1 Projectile 590 | . 57 6 41 11 23 26 5 17 45 82 219 16 . 12 30 Critical Strikes 27 | . 1 . . . 11 . . 2 2 5 6 . . . . Damage Taken 9461 | . 693 94 522 208 570 557 56 250 750 1070 3012 298 . 308 1073 Core 1591 | . 179 25 201 28 50 28 14 7 110 239 466 10 . 20 214 Absorbed by Shields 64 | . . . . . . . . . . . . 64 . . . Ignored by Resistances 172 | . . . . . . . . . 14 . 158 . . . . Regen/Repaired (Parts) 256 | . . . . . . . . . . . 256 . . . . Core Remaining (%) 43 | 100 . 18 . . . 23 . . . 32 . . . . . Volleys Fired 616 | 8 81 3 62 12 66 39 1 28 60 59 78 20 2 71 26 Largest 2 | 2 2 2 2 1 2 2 2 2 1 2 2 2 2 1 2 Hottest 170 | 40 40 40 68 68 91 60 60 60 30 100 170 70 70 35 81 Shots Fired 1012 | 16 160 4 89 12 92 78 6 86 60 105 147 40 4 71 42 Gun 742 | 16 158 2 81 . 81 78 6 86 60 105 69 . . . . Cannon 249 | . . . 3 12 3 . . . . . 74 40 4 71 42 Launcher 17 | . 2 2 5 . 8 . . . . . . . . . . Special 4 | . . . . . . . . . . . 4 . . . . Kinetic 567 | 16 158 2 65 . 81 78 2 52 60 52 1 . . . . Thermal 368 | . . . 3 12 3 . 4 34 . 23 142 40 4 71 32 Explosive 17 | . 2 2 5 . 8 . . . . . . . . . . Electromagnetic 56 | . . . 16 . . . . . . 30 . . . . 10 Robot Hit Streak 30 | 5 13 2 12 3 30 17 4 7 7 14 18 9 1 6 7 Robot Miss Streak 7 | 2 6 2 7 3 5 4 1 6 3 5 7 3 2 5 4 Penetration Max 2 | . . . . . 1 2 . 1 1 1 . . . . . Secondary Targets 6 | . 2 . 1 . . 1 . . . 2 . . . . . Max Gunslinging Chain 1 | . 1 . 1 . . 1 . . . 1 . . . . . Autonomous 99 | . . . . . . . 4 34 . 23 38 . . . . Shots Hit Robots 669 | 9 97 2 73 12 61 48 5 47 53 79 98 24 1 42 18 Core Hits 374 | 1 40 3 37 2 39 26 4 21 33 39 87 10 1 22 9 Critical Kills 28 | . . . . . 4 8 1 7 5 . . 2 . . 1 Critical Parts Destroyed 36 | . 1 . 1 . 6 12 1 4 11 . . . . . . Critical Strikes 73 | . 1 . 2 . 10 26 2 11 17 1 . 2 . . 1 Meltdown 3 | . . . . . . . . . . . . 2 . . 1 Destroy 66 | . 1 . . . 10 26 2 11 16 . . . . . . Corrupt 1 | . . . . . . . . . . 1 . . . . . Smash 2 | . . . 2 . . . . . . . . . . . . Sever 1 | . . . . . . . . . 1 . . . . . . Melee Attacks 28 | . 1 . 13 7 . . . . 6 1 . . . . . Impact 21 | . 1 . 13 7 . . . . . . . . . . . Slashing 7 | . . . . . . . . . 6 1 . . . . . Piercing . | . . . . . . . . . . . . . . . . Sneak Attacks 4 | . . . 1 1 . . . . 2 . . . . . . Combat Hostiles . | . . . . . . . . . . . . . . . . Follow-up Attacks . | . . . . . . . . . . . . . . . . Damage Inflicted 17453 | 88 1271 144 1777 445 1335 994 114 931 1237 1756 4446 806 41 1437 631 Guns 8996 | 88 1075 . 696 . 1005 972 114 931 938 1716 1461 . . . . Cannons 4371 | . . . 20 170 4 . . . . . 1262 806 41 1437 631 Explosions 3127 | . 196 144 698 . 326 . . . . 40 1723 . . . . Melee 937 | . . . 363 275 . . . . 299 . . . . . . Ramming 22 | . . . . . . 22 . . . . . . . . . Kinetic 5804 | 88 1075 . 457 . 1005 972 34 443 938 770 22 . . . . Thermal 6843 | . . . 118 170 4 . 80 488 . 611 2701 806 41 1437 387 Explosive 2760 | . 196 144 600 . 326 . . . . . 1494 . . . . Electromagnetic 1087 | . . . 239 . . . . . . 375 229 . . . 244 Impact 638 | . . . 363 275 . . . . . . . . . . . Slashing 299 | . . . . . . . . . 299 . . . . . . Piercing . | . . . . . . . . . . . . . . . . Highest Corruption 11 | . . . . . . . . . . 1 11 11 11 11 . Average Corruption 6 | . . . . . . . . . . 1 5 11 11 11 . Corruption Purged . | . . . . . . . . . . . . . . . . Corruption Blocked . | . . . . . . . . . . . . . . . . Effects 49 | . . . . . . . . . . 2 19 16 12 . . Message Errors 14 | . . . . . . . . . . 1 5 3 5 . . Matter Fused 11 | . . . . . . . . . . . 3 5 3 . . Heat Flow Errors 4 | . . . . . . . . . . . 1 1 2 . . Energy Discharges 6 | . . . . . . . . . . . 4 1 1 . . Parts Rejected 1 | . . . . . . . . . . . . 1 . . . Data Loss (minor) 6 | . . . . . . . . . . . 1 5 . . . Data Loss (major) 4 | . . . . . . . . . . 1 3 . . . . Misfires 1 | . . . . . . . . . . . 1 . . . . Alerts 1 | . . . . . . . . . . . . . 1 . . Weapon Failures 1 | . . . . . . . . . . . 1 . . . . Overload Shots 15 | . . . . . . . . . . . 15 . . . . Overflow Damage 482 | . 5 . 118 119 . . . . 72 . 95 25 . 18 30 Projectiles 92 | . . . . 5 . . . . . . 14 25 . 18 30 Explosions 110 | . 5 . 24 . . . . . . . 81 . . . . Melee 280 | . . . 94 114 . . . . 72 . . . . . . Knockbacks 1 | . . . . 1 . . . . . . . . . . . Impact 1 | . . . . 1 . . . . . . . . . . . Kinetic . | . . . . . . . . . . . . . . . . Secondary . | . . . . . . . . . . . . . . . . Self-Inflicted Damage 316 | . 4 12 49 . 65 . . . . . 186 . . . . Shots 8 | . 1 1 1 . 2 . . . . . 3 . . . . Rammed . | . . . . . . . . . . . . . . . . Targets Rammed 3 | . . . . . . 3 . . . . . . . . . Kicked 3 | . . . . . . 3 . . . . . . . . . Crushed . | . . . . . . . . . . . . . . . . Highest Temperature 375 | . 8 10 50 240 24 162 228 22 13 148 375 137 244 18 18 Average Temperature 60 | . 3 8 15 102 12 64 125 6 7 64 85 27 107 10 18 Received Heat Transfer 2185 | . 129 48 183 108 . 153 9 153 180 378 474 75 . 73 222 Siege Activations . | . . . . . . . . . . . . . . . . Martial Activations . | . . . . . . . . . . . . . . . . Shielding Activations . | . . . . . . . . . . . . . . . . Robots Disrupted . | . . . . . . . . . . . . . . . . Combat Hostiles . | . . . . . . . . . . . . . . . . Robots Corrupted 9 | . . . 3 2 . . . . . 2 . . . . 2 Combat Hostiles 5 | . . . 2 1 . . . . . . . . . . 2 Parts Fried 7 | . . . 3 4 . . . . . . . . . . . Impact Corruptions 7 | . . . 4 3 . . . . . . . . . . . Robots Melted 5 | . . . . . . . . . . . . 3 . . 2 Combat Hostiles 5 | . . . . . . . . . . . . 3 . . 2 Parts Melted 35 | . . . . . . . 1 1 . 1 13 7 . 3 9 Heat Transferred 9730 | . . . 187 296 18 . 111 591 . 753 3738 1250 50 2136 600 Parts Sabotaged . | . . . . . . . . . . . . . . . . Parts Stolen . | . . . . . . . . . . . . . . . . Parts Stripped . | . . . . . . . . . . . . . . . . Power Chain Reactions 3 | . . . 2 . . . . . . 1 . . . . . Alert | -11 -10 -10 -9 -9 -9 -8 -8 -8 -8 -8 -7 -7 -7 -7 -7 ------- Run | Yrd Mat Min Mat Min Exi Min Mat Gar Mat Gar Fac Low Low Zio Dee Maximum Alert Level 3 | . . . 1 . . . . 3 1 3 3 . . . . Low Security (%) 52 | 100 100 100 92 100 . 100 100 19 15 10 . . . . . Level 1 26 | . . . 7 . . . . 23 84 24 54 . . . . Level 2 12 | . . . . . . . . 45 . 42 23 . . . . Level 3 7 | . . . . . . . . 11 . 22 21 . . . . Level 4 . | . . . . . . . . . . . . . . . . Level 5 . | . . . . . . . . . . . . . . . . High Security . | . . . . . . . . . . . . . . . . Max Security . | . . . . . . . . . . . . . . . . Peak Influence 1080 | 5 95 68 216 135 . 139 109 752 395 752 1080 . . . . Initial 394 | . . 4 . 70 . . 18 59 366 111 394 . . . . Average 251 | 1 26 12 109 45 . 46 49 438 292 485 511 . . . . Influence Increases 5494 | 5 446 64 532 201 . 431 141 723 579 671 1457 210 34 . . Destroy 0b10 Robot/C 3240 | . 260 40 320 120 . 280 80 480 360 380 700 200 20 . . Destroy 0b10 Robot/NC 195 | 5 45 . 45 5 . 5 . 10 15 10 55 . . . . Destroy Leader 598 | . 58 10 60 30 . 70 30 20 124 40 136 10 10 . . Allied During Kill 163 | . . . . 31 . 12 . 67 6 . 43 . 4 . . Successful Hack 195 | . 21 . 57 . . . 14 10 17 20 56 . . . . Select Force Hacks 30 | . . . . . . . . . 30 . . . . . . Disable Machine 360 | . 15 . . . . 15 . 30 15 15 270 . . . . Anti-Garrison Action 150 | . . . . . . . . 100 . 50 . . . . . Destroy Structure 203 | . 17 14 35 . . 19 2 6 12 21 77 . . . . Partial Spotted 30 | . 15 . . . . . 15 . . . . . . . . Lose Combat Pursuer 330 | . 15 . 15 15 . 30 . . . 135 120 . . . . Influence Decreases 5494 | 5 434 76 350 312 71 384 97 62 1160 90 1158 614 314 367 . Entered New Map 1937 | . . 8 . 112 71 . 29 32 386 60 358 390 124 367 . Time Decay 2864 | 5 381 68 330 200 . 384 68 . 404 . 620 214 190 . . Lost Part 264 | . 44 . 20 . . . . 10 30 30 120 10 . . . Lost Ally 129 | . 9 . . . . . . 20 40 . 60 . . . . Purge Threat 300 | . . . . . . . . . 300 . . . . . . Squads Dispatched 24 | . 1 1 3 . . 1 1 . 7 . 10 . . . . Investigation 9 | . 1 1 3 . . . . . 1 . 3 . . . . Extermination 4 | . . . . . . . . . . . 4 . . . . Reinforcement 6 | . . . . . . 1 . . 3 . 2 . . . . Assault 1 | . . . . . . . . . . . 1 . . . . Garrison 4 | . . . . . . . 1 . 3 . . . . . . Intercept . | . . . . . . . . . . . . . . . . Searches Triggered . | . . . . . . . . . . . . . . . . Construction Impeded 3 | . . . . . . 1 . . . . 2 . . . . Haulers Reinforced . | . . . . . . . . . . . . . . . . Active Scanning Responses . | . . . . . . . . . . . . . . . . Cargo Convoy Interrupts 1 | . . . . . . . . . . . 1 . . . . Stealth | -11 -10 -10 -9 -9 -9 -8 -8 -8 -8 -8 -7 -7 -7 -7 -7 --------- Run | Yrd Mat Min Mat Min Exi Min Mat Gar Mat Gar Fac Low Low Zio Dee Distress Signals 8 | . . . . . . 1 . 1 3 . 3 . . . . Communications Jammed . | . . . . . . . . . . . . . . . . Distress Signals . | . . . . . . . . . . . . . . . . Times Spotted 385 | . 23 2 29 9 14 15 5 22 26 24 60 10 1 132 13 Peak Tracking Total 10 | . 3 2 5 3 9 4 2 6 6 7 10 9 1 7 5 Tactical Retreats 18 | . 1 . 1 1 3 3 . . . 4 3 . . 1 1 Traps | -11 -10 -10 -9 -9 -9 -8 -8 -8 -8 -8 -7 -7 -7 -7 -7 ------- Run | Yrd Mat Min Mat Min Exi Min Mat Gar Mat Gar Fac Low Low Zio Dee Traps Triggered 15 | . 5 . 2 . . . . 1 1 4 2 . . . . Indirectly . | . . . . . . . . . . . . . . . . Trap Hack Attempts . | . . . . . . . . . . . . . . . . Triggered . | . . . . . . . . . . . . . . . . Disarmed . | . . . . . . . . . . . . . . . . Reprogrammed . | . . . . . . . . . . . . . . . . Reused 1 | . . . . . . . . . . . . . . . 1 Traps Extracted . | . . . . . . . . . . . . . . . . Installed 1 | . . . . . . . . . . . . . . . 1 Triggered . | . . . . . . . . . . . . . . . . Most Traps Carried 2 | . . . . . . . . 2 1 1 1 1 1 1 1 Machines | -11 -10 -10 -9 -9 -9 -8 -8 -8 -8 -8 -7 -7 -7 -7 -7 ---------- Run | Yrd Mat Min Mat Min Exi Min Mat Gar Mat Gar Fac Low Low Zio Dee Machines Disabled 44 | . 2 . . . 12 1 . 5 1 2 18 2 . . 1 Max in Single Turn 10 | . 1 . . . 2 1 . 2 1 1 10 1 . . 1 Garrison Access 2 | . . . . . . . . . . . 2 . . . . Garrison Relay 3 | . . . . . . . . 2 . 1 . . . . . Phase Generator 1 | . . . . . . . . 1 . . . . . . . Machines Repaired . | . . . . . . . . . . . . . . . . Machines Dismantled . | . . . . . . . . . . . . . . . . Machines Sabotaged . | . . . . . . . . . . . . . . . . Overloaded Fab Kills . | . . . . . . . . . . . . . . . . Hacking | -11 -10 -10 -9 -9 -9 -8 -8 -8 -8 -8 -7 -7 -7 -7 -7 --------- Run | Yrd Mat Min Mat Min Exi Min Mat Gar Mat Gar Fac Low Low Zio Dee Machines Accessed 55 | . 7 1 11 1 2 . 4 3 7 2 17 . . . . Terminals 37 | . 6 . 10 . . . 3 3 5 2 8 . . . . Fabricators 3 | . . . . . . . . . . . 3 . . . . Repair Stations 4 | . 1 . . . . . . . . . 3 . . . . Recycling Units 1 | . . . . . . . . . 1 . . . . . . Scanalyzers 2 | . . . 1 . . . . . . . 1 . . . . Garrison Access 4 | . . . . . . . 1 . 1 . 2 . . . . Total Hacks 155 | . 25 1 39 1 3 . 7 6 15 5 53 . . . . Successful 88 | . 11 1 24 1 3 . 3 1 12 2 30 . . . . Failed 66 | . 14 . 14 . . . 4 5 3 3 23 . . . . Catastrophic 12 | . 3 . 3 . . . 2 . . . 4 . . . . Database Lockouts 1 | . . . 1 . . . . . . . . . . . . Manual 86 | . 18 . 25 . 1 . 1 2 7 2 25 1 . 4 . Terminals 109 | . 19 . 34 . . . 6 6 11 5 28 . . . . Fabricators 8 | . . . . . . . . . . . 8 . . . . Repair Stations 17 | . 6 . . . . . . . . . 11 . . . . Recycling Units 2 | . . . . . . . . . 2 . . . . . . Scanalyzers 8 | . . . 5 . . . . . . . 3 . . . . Garrison Access 6 | . . . . . . . 1 . 2 . 3 . . . . Terminal Hacks 29 | . 2 1 6 1 3 . 2 1 3 2 8 . . . . Record 2 | . . . . . 2 . . . . . . . . . . Part Schematic 1 | . . . . . . . . . . . 1 . . . . Robot Analysis 1 | . 1 . . . . . . . . . . . . . . Prototype ID Bank 1 | . . . 1 . . . . . . . . . . . . Open Door 2 | . . 1 . 1 . . . . . . . . . . . Branch Access Points 3 | . . . 1 . . . . . 1 . 1 . . . . Emergency Access Points 3 | . . . 1 . . . . . . 1 1 . . . . Machine Index 1 | . . . 1 . . . . . . . . . . . . Terminal Index 1 | . . . . . . . 1 . . . . . . . . Unreport Threat 2 | . . . . . . . . . 2 . . . . . . Locate Traps 2 | . 1 . . . . . . . . . 1 . . . . Dispatch Records 1 | . . . . . . . . . . . 1 . . . . Recall Extermination 1 | . . . . . . . . . . . 1 . . . . Hauler Manifests 1 | . . . 1 . . . . . . . . . . . . Registered Components 3 | . . . 1 . . . 1 . . . 1 . . . . Zone Layout 1 | . . . . . . . . . . . 1 . . . . Garrison Registry 2 | . . . . . . . . 1 . 1 . . . . . Proto ID Catalog 1 | . . . . . 1 . . . . . . . . . . Fabricator Hacks 2 | . . . . . . . . . . . 2 . . . . Network Status 2 | . . . . . . . . . . . 2 . . . . Repair Station Hacks 5 | . . . . . . . . . . . 5 . . . . Scan Component 3 | . . . . . . . . . . . 3 . . . . Repair 2 | . . . . . . . . . . . 2 . . . . Recycling Unit Hacks 1 | . . . . . . . . . 1 . . . . . . Retrieve Components 1 | . . . . . . . . . 1 . . . . . . Scanalyzer 7 | . . . 4 . . . . . . . 3 . . . . Insert Component 1 | . . . . . . . . . . . 1 . . . . Analyze 1 | . . . . . . . . . . . 1 . . . . Retrieve Study 5 | . . . 4 . . . . . . . 1 . . . . Garrison Access Hacks 5 | . . . . . . . 1 . 2 . 2 . . . . Unlock Access 2 | . . . . . . . 1 . 1 . . . . . . Seal Access 2 | . . . . . . . . . . . 2 . . . . Coupler Status 1 | . . . . . . . . . 1 . . . . . . Unauthorized Hacks 39 | . 9 . 14 . . . . . 6 . 10 . . . . Terminals 34 | . 9 . 14 . . . . . 5 . 6 . . . . Track 3 | . . . 3 . . . . . . . . . . . . Assimilate 1 | . 1 . . . . . . . . . . . . . . Botnet 13 | . 2 . 4 . . . . . 2 . 5 . . . . Operators 3 | . 1 . 1 . . . . . . . 1 . . . . Skim 14 | . 5 . 6 . . . . . 3 . . . . . . Fabricators 2 | . . . . . . . . . . . 2 . . . . Liberate 1 | . . . . . . . . . . . 1 . . . . Haulers 1 | . . . . . . . . . . . 1 . . . . Repair Stations 1 | . . . . . . . . . . . 1 . . . . Patch 1 | . . . . . . . . . . . 1 . . . . Recycling Units 1 | . . . . . . . . . 1 . . . . . . Tunnel 1 | . . . . . . . . . 1 . . . . . . Scanalyzers . | . . . . . . . . . . . . . . . . Garrison Access 1 | . . . . . . . . . . . 1 . . . . Watchers 1 | . . . . . . . . . . . 1 . . . . Data Cores Recovered 2 | . . . 1 . . . . . . . 1 . . . . Used 1 | . . . 1 . . . . . . . . . . . . Hacking Detections 44 | . 7 . 10 . . . 3 3 5 2 14 . . . . Full Trace Events 3 | . . . 1 . . . . . . . 2 . . . . Feedback Events . | . . . . . . . . . . . . . . . . Feedback Blocked . | . . . . . . . . . . . . . . . . Robot Schematics Acquired . | . . . . . . . . . . . . . . . . Robots Built . | . . . . . . . . . . . . . . . . Authchips . | . . . . . . . . . . . . . . . . Time . | . . . . . . . . . . . . . . . . Total Robot Build Rating . | . . . . . . . . . . . . . . . . Part Schematics Acquired 1 | . . . . . . . . . . . 1 . . . . Parts Built . | . . . . . . . . . . . . . . . . Authchips . | . . . . . . . . . . . . . . . . Time . | . . . . . . . . . . . . . . . . Total Part Build Rating . | . . . . . . . . . . . . . . . . Part Studies Acquired 5 | . . . 4 . . . . . . . 1 . . . . Parts Repaired 2 | . . . . . . . . . . . 2 . . . . Time 132 | . . . . . . . . . . . 132 . . . . Parts Recycled . | . . . . . . . . . . . . . . . . Recycled Matter . | . . . . . . . . . . . . . . . . Retrieved Matter . | . . . . . . . . . . . . . . . . Retrieved Components 10 | . . . . . . . . . 10 . . . . . . Parts Scanalyzed 1 | . . . . . . . . . . . 1 . . . . Part Schematics Acquired . | . . . . . . . . . . . . . . . . Parts Damaged . | . . . . . . . . . . . . . . . . Bothacking | -11 -10 -10 -9 -9 -9 -8 -8 -8 -8 -8 -7 -7 -7 -7 -7 ------------ Run | Yrd Mat Min Mat Min Exi Min Mat Gar Mat Gar Fac Low Low Zio Dee Used RIF Installer 3 | . . . . . . . . 1 . 2 . . . . . Command Fork 1 | . . . . . . . . . . 1 . . . . . Alert ID Control 1 | . . . . . . . . . . 1 . . . . . Robots Hacked 3 | . . . . . . . . . . . 3 . . . . Non-combat 3 | . . . . . . . . . . . 3 . . . . Combat . | . . . . . . . . . . . . . . . . Robot Hacks Applied 3 | . . . . . . . . . . . 3 . . . . drop_inventory 3 | . . . . . . . . . . . 3 . . . . Relay Couplers Released 13 | . . . . . . . . 9 . 4 . . . . . Machine Destruction 10 | . . . . . . . . 6 . 4 . . . . . Programmers 3 | . . . . . . . . 3 . . . . . . . Attached 1 | . . . . . . . . . . . 1 . . . . Fabnet Peak Effective % . | . . . . . . . . . . . . . . . . Robots Rewired 6 | . . . . . . . . 4 . . . 2 . . . Allies Hacked . | . . . . . . . . . . . . . . . . Hacks Repelled . | . . . . . . . . . . . . . . . . Allies | -11 -10 -10 -9 -9 -9 -8 -8 -8 -8 -8 -7 -7 -7 -7 -7 -------- Run | Yrd Mat Min Mat Min Exi Min Mat Gar Mat Gar Fac Low Low Zio Dee Total Allies 11 | . 1 . . 4 . . . 4 . . . 2 . . . Largest Group 4 | . 1 . . 4 3 . . 4 2 . . 2 2 2 2 Highest-Rated Group 71 | . 10 . . 71 40 . . 62 30 . . 50 50 50 50 Highest-Rated Ally 31 | . 10 . . 31 16 . . 16 15 . . 30 30 30 30 Total Orders 71 | . . . . . 3 3 . . . . 7 . . 58 . STAY 3 | . . . . . 1 . . . . . . . . 2 . FOLLOW 2 | . . . . . . . . . . . . . . 2 . EXPLORE 1 | . . . . . . . . . . . . . . 1 . RETURN 65 | . . . . . 2 3 . . . . 7 . . 53 . Ally Attacks 911 | . . . . 27 43 41 . 51 6 . 43 . . 695 5 Total Damage 11705 | . . . . 349 237 981 . 782 134 . 871 . . 8267 84 Kills 166 | . . . . 3 . 1 . 10 2 . 9 . . 141 . Allies Corrupted . | . . . . . . . . . . . . . . . . Allies Melted 1 | . . . . . . . . . . . . . . . 1 Turrets Deployed 1 | . . . . . . 1 . . . . . . . . . Intel | -11 -10 -10 -9 -9 -9 -8 -8 -8 -8 -8 -7 -7 -7 -7 -7 ------- Run | Yrd Mat Min Mat Min Exi Min Mat Gar Mat Gar Fac Low Low Zio Dee Active Infowar (turns) 4416 | 10 1029 384 746 614 955 . . . . . 678 . . . . Sensors 525 | . 259 . . . 266 . . . . . . . . . . Seismic 3891 | 10 770 384 746 614 689 . . . . . 678 . . . . Robot Analysis Total 1 | . 1 . . . . . . . . . . . . . . Derelict Logs Recovered 9 | . . 2 . 3 . . . . . . . 1 . 3 . Drone Launches 108 | . . . . . 13 8 . . . . 13 . . 74 . Drone Recoveries 88 | . . . . . 11 8 . . . . 9 . . 60 . Exploration | -11 -10 -10 -9 -9 -9 -8 -8 -8 -8 -8 -7 -7 -7 -7 -7 ------------- Run | Yrd Mat Min Mat Min Exi Min Mat Gar Mat Gar Fac Low Low Zio Dee Turns Passed 16569 | 62 1212 384 746 615 1742 1238 142 713 972 770 2081 444 388 2957 2103 Spaces Moved 10826 | 36 801 371 503 547 1326 770 103 447 493 453 1436 317 304 1542 1377 Core 16 | 1 . . . . . . . . . . 15 . . . . Treads . | . . . . . . . . . . . . . . . . Legs 2238 | . . . . . 210 770 103 447 314 . . . . . 394 Wheels 7878 | 35 801 371 503 547 1116 . . . 179 453 1372 317 304 1542 338 Hover 694 | . . . . . . . . . . . 49 . . . 645 Flight . | . . . . . . . . . . . . . . . . Fastest Speed 38 | 50 80 95 76 91 76 120 120 120 115 115 38 100 113 83 48 Average Speed 118 | 79 95 95 89 91 99 127 120 120 145 115 105 105 113 165 129 Slowest Speed 280 | 80 115 95 95 91 190 190 120 120 190 115 156 113 113 195 280 Overloaded Moves 9 | . . . . . . . . . . . 9 . . . . Propulsion Burnouts . | . . . . . . . . . . . . . . . . Robots Hopped . | . . . . . . . . . . . . . . . . Potential Cave-ins 3 | . . . . . . . . . . . 3 . . . . Cave-ins Triggered . | . . . . . . . . . . . . . . . . Exploration Rate (%) 60 | 3 98 84 50 90 90 99 15 68 40 43 34 50 56 83 70 Regions Visited 15 Branch Regions 8 Pre-discovered Areas 8 | . 2 2 2 . 1 . . . 1 . . . . . . Known Exits Taken 6 | . . 1 1 . . 1 1 . 1 . 1 . . . . Unknown Exits Taken 7 | 1 1 . . 1 1 . . . . . . 1 1 1 . Scrap Searched 6 | . . 1 . 1 . 1 . . . . . 1 . 2 . Spaces Dug 27 | . . . 11 . . . . . . . 16 . . . . Terrain Destroyed 262 | . 20 18 53 . 20 30 2 6 13 1 80 10 3 . 6 Melee . | . . . . . . . . . . . . . . . . Projectile 96 | . . . . . 6 28 2 5 12 . 24 10 3 . 6 AOE 162 | . 20 18 53 . 14 . . . . 1 56 . . . . Terrain Rammed . | . . . . . . . . . . . . . . . . Walls Destroyed . | . . . . . . . . . . . . . . . . Machines Disabled . | . . . . . . . . . . . . . . . . Actions | -11 -10 -10 -9 -9 -9 -8 -8 -8 -8 -8 -7 -7 -7 -7 -7 --------- Run | Yrd Mat Min Mat Min Exi Min Mat Gar Mat Gar Fac Low Low Zio Dee Total 13647 | 51 1093 399 697 639 1666 952 120 574 677 619 1878 396 345 1879 1662 Wait 1527 | . 158 20 72 69 202 117 . 61 80 46 231 29 40 212 190 Move 10812 | 35 800 370 502 546 1325 769 102 446 493 452 1435 316 303 1541 1377 Hop . | . . . . . . . . . . . . . . . . Pick Up 127 | 1 20 2 17 1 17 3 6 6 3 3 20 1 . 22 5 Fast Attach 132 | 7 9 . 5 . 7 2 2 3 14 9 39 1 . 9 25 Attach 47 | . 7 . 5 . 6 . 2 3 . 4 12 1 . 4 3 Detach 13 | . 2 . 1 . . . . 1 1 3 5 . . . . Swap 69 | . 8 2 7 2 14 11 2 1 3 1 13 . . 2 3 Drop 180 | . 7 2 13 2 29 8 5 8 17 9 29 1 . 18 32 Fire 616 | 8 81 3 62 12 66 39 1 28 60 59 78 20 2 71 26 Melee 28 | . 1 . 13 7 . . . . 6 1 . . . . . Ram . | . . . . . . . . . . . . . . . . Kick 3 | . . . . . . 3 . . . . . . . . . Crush . | . . . . . . . . . . . . . . . . Escape Stasis 53 | . . . . . . . . 5 . 32 16 . . . . Rewire 39 | . . . . . . . . 12 . . . 27 . . . Trap 1 | . . . . . . . . . . . . . . . 1 Miscellaneous . | . . . . . . . . . . . . . . . . Route ------- -11/Scrapyard -10/Materials (discovered 6 exits: *Mat x3 / *Min x2 / [*Sub]) -10/Mines (discovered 2 exits: *Mat x2) -9/Materials (discovered 6 exits: Mat x3 / *Min x2 / Sto) -9/Mines (discovered 3 exits: *Mat x2 / *Exi) -9/Exiles -8/Mines (discovered 2 exits: *Mat x2) -8/Materials -8/Garrison (discovered 3 exits: *Mat x3) -8/Materials -8/Garrison (discovered 3 exits: *Fac x3) -7/Factory (discovered 4 exits: [*Fac x2] / *Low x2) -7/Lower Caves -7/Lower Caves (discovered 2 exits: [*Fac] / *Zio) -7/Zion (discovered 2 exits: [*Dee] / [*Pro]) -7/Deep Caves (discovered 1 exit: [*Pro]) History --------- Turn | Location | Event 10 | -11/Scrapyard | Discovered new exit (range 16) 63 | -11/Scrapyard | Entered Materials 231 | -10/Materials | Discovered new exit (range 10) 262 | -10/Materials | Discovered new exit (range 14) 305 | -10/Materials | Build established: Mutant 393 | -10/Materials | Discovered new exit (range 15) 474 | -10/Materials | Discovered new exit (range 11) 594 | -10/Materials | Discovered new exit (range 12) 803 | -10/Materials | Discovered new exit (range 4) 963 | -10/Materials | Derelicts attacked the area 1095 | -10/Materials | Learned Storage stockpile data 1117 | -10/Materials | Learned location of 2 exits from Subcaves 1129 | -10/Materials | Learned location of Storage (-9) 1131 | -10/Materials | Identified exit to Materials 1132 | -10/Materials | Learned location of Subcaves (-10) 1134 | -10/Materials | Learned 4 Subcaves zone layouts 1145 | -10/Materials | Learned location of 3 exits from Materials 1200 | -10/Materials | Core integrity fell below 50% 1275 | -10/Materials | Entered Mines 1282 | -10/Mines | Core integrity fell below 20% 1318 | -10/Mines | Received a Rocket Launcher from a helpful Derelict 1335 | -10/Mines | Learned location of Zion (-7) 1358 | -10/Mines | Met a Derelict shopkeep closing up shop 1455 | -10/Mines | Build established: Scavenger-Mutant 1477 | -10/Mines | Discovered exit to Materials (range 9) 1642 | -10/Mines | Discovered exit to Materials (range 7) 1659 | -10/Mines | Entered Materials 1659 | -9/Materials | Evolved 2 slots: Propulsion x1, Utility x1 1660 | -9/Materials | Identified exit to Mines 1661 | -9/Materials | Identified exit to Materials 1780 | -9/Materials | Identified exit to Storage 1792 | -9/Materials | Central database locked down 2202 | -9/Materials | Loaded intel: 18 interactive machine locations 2224 | -9/Materials | Learned Storage interactive machine intel 2236 | -9/Materials | Learned Storage stockpile data 2275 | -9/Materials | Core integrity fell below 50% 2405 | -9/Materials | Entered Mines 2420 | -9/Mines | Learned Materials trap positions 2461 | -9/Mines | Deemed a non-threat by the Exiles lab entrance 2461 | -9/Mines | Discovered new exit (range 5) 2706 | -9/Mines | Assisted by bots powering up and referring to "LRC-V3" 2722 | -9/Mines | Found a Scrap Suit stashed away for nefarious purposes 2739 | -9/Mines | Received a Mining Laser from a helpful Derelict 2760 | -9/Mines | Joined a pair of Derelicts in attacking an 0b10 outpost 2788 | -9/Mines | Discovered exit to Materials (range 5) 2830 | -9/Mines | Learned Materials non-interactive machine intel 2832 | -9/Mines | Discovered exit to Materials (range 14) 2896 | -9/Mines | Found the Drone Emporium 2897 | -9/Mines | Learned Materials stockpile data 2902 | -9/Mines | Found Prototype Device 2910 | -9/Mines | Identified Thief Drone Bay 3020 | -9/Mines | Entered Exiles 3020 | -9/Exiles | Accompanied by 4 allies 3042 | -9/Exiles | Met 8R-AWN 3057 | -9/Exiles | Met EX-HEX 3087 | -9/Exiles | Met EX-BIN 3098 | -9/Exiles | Aligned with FarCom system 3099 | -9/Exiles | Given EX-Vault access code 3120 | -9/Exiles | Opened EX-Vault 3133 | -9/Exiles | Found Army-in-a-Box 3151 | -9/Exiles | Warned to stay clear of 0b10 Research branches 3225 | -9/Exiles | Met EX-DEC 3544 | -9/Exiles | Visited The Gauntlet 3623 | -9/Exiles | Attacked by the Exiles 3755 | -9/Exiles | Lost 4 allies 3822 | -9/Exiles | Destroyed 8R-AWN 3832 | -9/Exiles | Found AS-neutralizer No. 17b 3848 | -9/Exiles | Found 8R-AWN's Boregun 3937 | -9/Exiles | Found 8R-AWN's Boregun 3996 | -9/Exiles | Build established: Mutant 4012 | -9/Exiles | Found AWS/Thermal 4186 | -9/Exiles | Found Prototype Protection 4186 | -9/Exiles | Identified 8R-AWN's Armor/EX 4268 | -9/Exiles | Destroyed EX-BIN 4331 | -9/Exiles | Destroyed EX-DEC 4355 | -9/Exiles | Destroyed EX-HEX 4607 | -9/Exiles | Found Prototype Processor 4607 | -9/Exiles | Identified Exp. Core Analyzer 4610 | -9/Exiles | Found Deploy-a-Sentry 4752 | -9/Exiles | Discovered new exit (range 10) 4762 | -9/Exiles | Stole three prototypes: Army-in-a-Box, AWS/Thermal, Deploy-a-Sentry 4762 | -9/Exiles | Entered Mines 4764 | -8/Mines | DAS Turret deployed 4777 | -8/Mines | Discovered exit to Materials (range 5) 4862 | -8/Mines | 7V-RTL came to Exiles' defense 5178 | -8/Mines | Destroyed 7V-RTL 5755 | -8/Mines | Discovered exit to Materials (range 3) 6000 | -8/Mines | Entered Materials 6000 | -8/Materials | Evolved 2 slots: Propulsion x1, Utility x1 6001 | -8/Materials | Loaded intel: 14 trap records 6003 | -8/Materials | Loaded intel: 23 non-interactive machine locations 6057 | -8/Materials | Garrison activated, responded to threat 6141 | -8/Materials | Identified exit to Garrison 6142 | -8/Materials | Entered Garrison 6220 | -8/Garrison | Triggered checkpoint 6261 | -8/Garrison | Discovered new exit (range 58) 6261 | -8/Garrison | Discovered new exit (range 33) 6261 | -8/Garrison | Discovered new exit (range 62) 6309 | -8/Garrison | Build established: Scavenger-Mutant 6349 | -8/Garrison | Installed Relay Interface Framework 6363 | -8/Garrison | Garrison Relay disabled 6422 | -8/Garrison | Triggered checkpoint 6484 | -8/Garrison | Triggered checkpoint 6514 | -8/Garrison | Triggered checkpoint 6589 | -8/Garrison | Phase Generator disabled 6609 | -8/Garrison | Met a derelict Sapper fleeing the area 6762 | -8/Garrison | Triggered checkpoint 6792 | -8/Garrison | Garrison Relay disabled 6855 | -8/Garrison | Entered Materials 6855 | -8/Materials | Accompanied by 2 allies 7514 | -8/Materials | Garrison activated, responded to threat 7581 | -8/Materials | Lost 3 parts (2u1w) 7827 | -8/Materials | Identified exit to Garrison 7827 | -8/Materials | Entered Garrison 7931 | -8/Garrison | Discovered new exit (range 50) 7931 | -8/Garrison | Discovered new exit (range 67) 7931 | -8/Garrison | Discovered new exit (range 62) 8008 | -8/Garrison | Expanded RIF knowledge: Alert ID Control 8153 | -8/Garrison | Triggered checkpoint 8161 | -8/Garrison | Core integrity fell below 50% 8249 | -8/Garrison | Triggered checkpoint 8323 | -8/Garrison | Expanded RIF knowledge: Command Fork 8383 | -8/Garrison | Triggered checkpoint 8422 | -8/Garrison | Garrison Relay disabled 8563 | -8/Garrison | Triggered checkpoint 8597 | -8/Garrison | Entered Factory 8597 | -7/Factory | Evolved 2 slots: Utility x2 8756 | -7/Factory | Discovered new exit (range 4) 8970 | -7/Factory | Repaired Arm. Huge Wheel 9184 | -7/Factory | Identified exit to Lower Caves 9184 | -7/Factory | Discovered new exit (range 14) 9354 | -7/Factory | AWS/Thermal suddenly broke down 9835 | -7/Factory | Build established: Mutant 9962 | -7/Factory | Repaired Broken Cld. Particle Cannon 10192 | -7/Factory | Cargo convoy interrupted 10197 | -7/Factory | First assault squad dispatched 10258 | -7/Factory | System corruption reached 10% 10263 | -7/Factory | Core integrity fell below 50% 10267 | -7/Factory | Destroyed 10 combat bots 10283 | -7/Factory | Released all parts (8) 10313 | -7/Factory | Lost 12 parts (1p2n4u5w) 10331 | -7/Factory | Lost 4 allies 10609 | -7/Factory | Build established: Scavenger-Mutant 10678 | -7/Factory | Entered Lower Caves 10848 | -7/Lower Caves | Attracted the attention of an 0b10 outpost 11001 | -7/Lower Caves | Learned location of 1 exit from Proximity Caves 11027 | -7/Lower Caves | Discovered new exit (range 15) 11042 | -7/Lower Caves | Acquired the password to a Derelict Tinkerer's latest research 11052 | -7/Lower Caves | Found Prototype Special Weapon 11122 | -7/Lower Caves | Entered another Lower Caves area 11122 | -7/Lower Caves | Accompanied by 2 allies 11122 | -7/Lower Caves | Discovered new exit (range 9) 11389 | -7/Lower Caves | Discovered new exit (range 11) 11510 | -7/Lower Caves | Entered Zion 11510 | -7/Zion | Accompanied by 2 allies 11543 | -7/Zion | System corruption cleaned by Quarantine Array 11561 | -7/Zion | Discovered new exit (range 16) 11648 | -7/Zion | Learned Factory interactive machine intel 11661 | -7/Zion | Given the Hacking Drone Bay 11819 | -7/Zion | RIF detected upon attempting to enter Zion 11819 | -7/Zion | Attacked by Zionites 11819 | -7/Zion | Spotted 4R-932(B) 11819 | -7/Zion | Spotted KU-TXL(B) 11824 | -7/Zion | Allies destroyed KU-TXL(B) 11829 | -7/Zion | Allies destroyed 4R-932(B) 11923 | -7/Zion | Allies destroyed Imprinter 11925 | -7/Zion | Extracted access codes from Imprinter's data core 11974 | -7/Zion | Lost 3 allies 12090 | -7/Zion | Learned Factory garrison access intel 12093 | -7/Zion | Build established: Mutant 12107 | -7/Zion | Learned Factory emergency access door positions 12153 | -7/Zion | Lost 3 allies 12499 | -7/Zion | Opened final containment barrier to the Deep Caves 13336 | -7/Zion | Found GAL Module 13478 | -7/Zion | Found Prototype Device 13965 | -7/Zion | Identified Mobile Refinery Mk. CCLXVII 14073 | -7/Zion | Found Relay Coupler [Programmer] 14081 | -7/Zion | Found Relay Coupler [Programmer] 14165 | -7/Zion | Found Prototype Device 14165 | -7/Zion | Identified Hacking Drone Bay 14194 | -7/Zion | Build established: Scavenger-Mutant 14455 | -7/Zion | Discovered new exit (range 3) 14455 | -7/Zion | Saw the warning signs outside the Deep Caves entrance 14467 | -7/Zion | Entered Deep Caves 14467 | -7/Deep Caves | Accompanied by 2 allies 14469 | -7/Deep Caves | Met 5H-AD0 14575 | -7/Deep Caves | Z-Facility disabled 14996 | -7/Deep Caves | Thanked by 5H-AD0 15011 | -7/Deep Caves | Found Prototype Protection 15011 | -7/Deep Caves | Identified Zio. Weapon Casing 15077 | -7/Deep Caves | Discovered new exit (range 6) 15640 | -7/Deep Caves | Spotted AG-57954 15911 | -7/Deep Caves | Found Prototype Protection 15911 | -7/Deep Caves | Identified Zio. Heavy Carapace 15994 | -7/Deep Caves | Found Zio. Weapon Casing 16080 | -7/Deep Caves | Found Zio. Weapon Casing 16297 | -7/Deep Caves | Destroyed AG-57954 16308 | -7/Deep Caves | Found GOLEM Unit 16364 | -7/Deep Caves | Found Zio. Heavy Carapace 16430 | -7/Deep Caves | Spotted AG-07731 16553 | -7/Deep Caves | Core integrity fell below 20% 16570 | -7/Deep Caves | Destroyed by AG-07731 with Assembled Focal Cannon Last Messages --------------- 16228_ Acquired 10 matter. 16242_ Weapon Cycler destroyed. 16255_ Dropped Proton Missile Launcher. 16292_ AG-57954: "DSI9AT1D G8OHIBQ29FWG 26R186 QD12WHW8W33 TDK1 81FTS" 16295_ Zio. Heavy Carapace destroyed. 16295_ Zio. Light Carapace destroyed. 16297_ AG-57954 system terminally corrupted. 16298_ GOLEM Unit springs to life. 16299_ AG-99296 GOLEM Unit beginning Prototype Leg integration. 16307_ AG-99296 system terminally corrupted. 16308_ Acquired GOLEM Unit. 16309_ Acquired 4 matter. 16364_ Acquired Zio. Heavy Carapace. 16376_ Acquired Imp. Reaction Control System. 16378_ Acquired 20 matter. 16440_ AG-07731: "DSI9AT1D G8OHIBQ29FWG 26R186 QD12WHW8W33 TDK1 81FTS" 16570_ DI-19A(g) destroyed. Map ----- +----------------------------------------------------+ | | | ?????????????????????????????????????????????????? | | ?????????????????????????????????????????????????? | | ?????????????????????????????????????????????????? | | ?????????????????????????????????????????????????? | | ???????????????#??#??????????????????????????????? | | ???????????? # ? ??????????????????????????????? | | ?????????? # # ??????????????????????????????? | | ???????? # ??##??????????????????????????? | | ???????? # ?? #??????????????????????????? | | ??????? ?? #??????????????????????????? | | ???????"" ?? #??????????????????????????? | | ??????" ## #??????????????????????????? | | ??????" # ##?????????????????????????? | | ??????" ?????????????????????????? | | ??????# ??????????????????????????? | | ???????" ???????????????????????????? | | ???????" ###?????????????????????????? | | ???????" ??????????????????????????? | | ???????" ;####????????????????????????? | | ???????" G ;## #????????????????????????? | | ??????# ;;# ####?????????????????????? | | ??????# [% # #?????????????????????? | | ??????# [] ####?????????????????????? | | ??????# [ [ ###?????????????????????? | | ??????# @ #????????????#####????? | | ??????# s ###???###?????## ##???? | | ??????# = ##????# #???## ##??? | | ??????# #????# #### ##?? | | ??????? == = #?????# ##? | | ??????? = == #??????# #? | | ???????? l #????????# #?? | | ???????? = / #??????### " #?# | | ???????? / #?????## "" ### | | ???????" h /=/l #???### "" ## | | ???????" ##?## ] | | ???????" == = ! ! #?# | | ??????? ! ! #?# | | ??????? #?## ####% ##" | | ??????? ! ! ########?#% ##### | | ??????? ### #???# | | ????????" ! #???## | | ???????? ! #????## | | ???????? #### ##?????## | | ????????? #?# ##???????# | | ????????? ### #????????? | | ????????? # # #?# ##????????? | | ?????????? #### ## ## ##?## ##?????????? | | ?????????? ##???# ?# ?###???##### ##??????????? | | ?????????????????#??# ???????????#####???????????? | +----------------------------------------------------+ Best States ------------- Heat Dissipation 91 Energy Generation 27 Energy Capacity 700 Matter Stores 300 Matter Capacity 300 Sight Range 16 Robot Scan Range 15 Terrain Scan Density 210 Additional Mass Support 12 Armor Coverage 1600 Resistance: KI 30 Resistance: EX 90 Resistance: EM 20 Weapon Shielding 100 Weapon Cycling 25 Evasion (%) 65 Targeting Accuracy 8 Core Analysis 8 Offensive Hacking 11 Relay Coupler Types 1 Relay Coupler Value 27 Trap Extractor Capacity 4 Item Schematics ----------------- Hacking Suite | -7/Factory | Hacked Robot Schematics ------------------ None Fabricated ------------ Nothing Repaired ---------- Arm. Huge Wheel | 38% | -7/Factory Cld. Particle Cannon | 68% | -7/Factory | Broken Studied --------- Com. Wheel | -9/Materials | Hacked Wheel | -9/Materials | Hacked Flight Unit | -9/Materials | Hacked Rocket Launcher | -9/Materials | Hacked Arm. Huge Wheel | -7/Factory | Hacked Alien Tech Used ----------------- None Achievements -------------- Who Guards The Bodyguard? Challenges ------------ None Game ------ Seed CompositeStrikeBeacon Manual? 0 Play Time 02:54:54 Cumulative 532.0 hours Start 2026.02.07 @ 20:13:04 End 2026.02.07 @ 23:17:50 Sessions 3 Manual Loads 0 Difficulty Rogue Special Mode None Game No. 180 Rogue 180 Adventurer 0 Explorer 0 Win Type - Total 17 Types 8/0/5/1/0/0/0/1/0/2 Lore% 91 Gallery% 87 Achievement% 75 Wizard Run 0 Options --------- Layout 1 ASCII 0 Keyboard 0 Movement Mouse Keybinds 0 Fullscreen 2 Font 32/SmallcapsGlow Map View 50x35 Zoom Use 0% Tactical HUD 1 Map Filters NONE Filters NONE Steam 1 RUN: 4e513a4c-e346-45f4-9842-a64e1830bd96